bitfinex-derivatives/quotes_ETHF0:USTF0_20250214
["timestamp","ask_amount","ask_price","bid_price","bid_amount"]
[1739493304199,0.77536746,2678.8,2678.6,0.74653]
[1739493304792,0.77536746,2678.8,2678.2,4.3387]
[1739493304996,0.77536746,2678.8,2678.6,0.74652]
[1739493305199,0.77536746,2678.8,2678.7,0.74651]
[1739493305612,0.77536746,2678.8,2678.2,4.3387]
[1739493305796,0.77536746,2678.8,2678.5,0.74655]
[1739493306501,1.52185746,2678.8,2678.5,0.74655]
[1739493306701,4.06571202,2678.8,2678.3,0.74662]
[1739493306905,0.74656,2678.6,2678.2,3.95444]
[1739493307211,0.74664,2678.3,2677.9,0.74673]
[1739493307402,1.7715,2678.2,2677.9,0.74672]
[1739493307703,1.7715,2678.2,2677.7,4.66980413]
[1739493307999,2.54686746,2678.2,2677.9,0.74673]
[1739493308193,3.29352746,2678.2,2677.8,0.74675]
[1739493308400,2.54686746,2678.2,2677.8,0.74675]
[1739493308704,3.29353746,2678.2,2677.8,0.74675]
[1739493308906,1.61,2678.1,2677.7,3.2078]
[1739493309213,1.61,2678.1,2677.3,0.02040046]
[1739493309214,0.74678,2677.8,2677.3,4.3658]
[1739493309508,2.7725,2677.7,2677.3,3.2078]
[1739493309803,4.10441,2677.7,2677.1,0.74694]
[1739493309998,4.87977746,2677.7,2677.2,0.74692]
[1739493310201,4.88537583,2677.7,2677.2,0.74692]
[1739493310807,4.13856583,2677.7,2677.3,0.74689]
[1739493311305,4.88536583,2677.7,2677.2,0.74692]
[1739493311504,4.13856583,2677.7,2677.3,0.7469]
[1739493311705,4.13856583,2677.7,2677.1,0.548]
[1739493311910,4.13856583,2677.7,2677.6,0.74682]
[1739493312300,4.13856583,2677.7,2677.3,3.2078]
[1739493312301,4.13856583,2677.7,2677.5,0.74683]
[1739493312608,4.13856583,2677.7,2677.4,2.936]
[1739493313205,1.611,2677.6,2677.4,2.936]
[1739493313608,3.13319746,2677.6,2677.4,2.936]
[1739493313912,5.67671202,2677.6,2677.2,2.936]
[1739493314207,5.67671202,2677.6,2677.0,3.2078]
[1739493314407,0.74685,2677.5,2677.0,3.95478]
[1739493314701,0.74685,2677.5,2677.0,3.95477]
[1739493314896,1.52221746,2677.5,2677.0,0.74697]
[1739493315499,4.03726456,2677.3,2676.8,0.74703]
[1739493315811,0.77536746,2677.5,2676.2,24.5408]
[1739493315812,6.49814456,2677.0,2676.2,24.5408]
[1739493316006,6.49814456,2677.0,2676.2,3.7667]
[1739493316207,4.03742456,2676.7,2676.2,4.5139]
[1739493316412,3.2543,2676.6,2676.2,3.955]
[1739493316713,2.38636746,2676.7,2676.5,0.74713]
[1739493317013,2.38636746,2676.7,2676.5,0.74712]
[1739493317205,2.38636746,2676.7,2676.2,3.2078]
[1739493317409,2.38636746,2676.7,2676.2,3.955]
[1739493317410,5.67671202,2676.7,2676.2,3.955]
[1739493317601,6.42380202,2676.7,2676.2,3.95501]
[1739493317807,5.67671202,2676.7,2676.3,0.74717]
[1739493318007,0.77536746,2676.7,2676.2,3.2078]
[1739493318214,0.77536746,2676.7,2676.6,0.7471]
[1739493318515,0.77536746,2676.7,2676.6,3.6831]
[1739493318813,0.77536746,2676.7,2676.6,4.242]
[1739493319313,0.77536746,2676.7,2676.6,45.042]
[1739493319716,3.2078,2677.0,2676.9,0.74702]
[1739493320009,4.8248,2677.3,2676.9,2.936]
[1739493320204,3.98316746,2677.3,2676.9,2.936]
[1739493320408,3.98316746,2677.3,2677.2,0.74693]
[1739493320913,0.77536746,2677.3,2677.2,0.74693]
[1739493321713,0.77536746,2677.3,2677.2,3.68293]
[1739493322010,1.7108,2677.6,2677.1,3.7706]
[1739493322211,2.48616746,2677.6,2677.2,0.74692]
[1739493322820,2.48616746,2677.6,2677.2,0.74693]
[1739493323018,6.52334202,2677.6,2677.1,3.2078]
[1739493323206,6.52334202,2677.6,2677.1,3.95474]
[1739493323411,2.48616746,2677.6,2677.5,0.74685]
[1739493324712,2.48616746,2677.6,2677.1,3.2078]
[1739493325017,2.48616746,2677.6,2677.3,0.74688]
[1739493325520,2.48616746,2677.6,2677.1,3.2078]
[1739493325714,4.10416746,2677.6,2677.1,3.2078]
[1739493325921,2.48616746,2677.6,2677.5,0.74685]
[1739493326519,2.48616746,2677.6,2677.3,0.74689]
[1739493327018,3.23300746,2677.6,2677.1,0.74694]
[1739493327413,3.23300746,2677.6,2677.0,0.5904]
[1739493327619,3.23300746,2677.6,2677.2,0.74693]
[1739493327814,2.48616746,2677.6,2677.2,0.74693]
[1739493328212,2.48616746,2677.6,2677.2,0.74692]
[1739493329317,2.48616746,2677.6,2677.0,0.5904]
[1739493329518,2.48616746,2677.6,2677.4,0.74687]
[1739493329717,1.94066746,2677.6,2677.5,0.74685]
[1739493330714,0.77536746,2677.6,2677.5,0.74685]
[1739493332014,0.77536746,2677.6,2677.4,3.2078]
[1739493332317,0.77536746,2677.6,2677.4,3.95467]
[1739493332514,1.0929,2677.5,2677.3,0.74689]
[1739493332721,0.74689,2677.4,2677.0,3.2078]
[1739493332922,4.90734456,2677.3,2676.7,3.2078]
[1739493333222,0.74693,2677.2,2676.7,3.2078]
[1739493333424,7.01002202,2677.3,2676.9,0.74702]
[1739493333620,7.01002202,2677.3,2676.8,0.74703]
[1739493334119,0.74694,2677.2,2676.7,3.2078]
[1739493334314,0.74694,2677.2,2676.7,3.95486]
[1739493334519,0.74697,2677.1,2676.7,3.95486]
[1739493334720,1.1379,2677.0,2676.7,3.95486]
[1739493335114,1.1379,2677.0,2676.7,3.2078]
[1739493335115,1.91326746,2677.0,2676.7,3.2078]
[1739493335313,1.618,2676.9,2676.7,3.2078]
[1739493335714,2.39336746,2676.9,2676.8,0.74704]
[1739493336517,2.39336746,2676.9,2676.7,3.95486]
[1739493336916,2.39336746,2676.9,2676.7,3.2078]
[1739493337115,0.5691,2676.8,2676.7,3.2078]
[1739493337617,1.34446746,2676.8,2676.7,3.2078]
[1739493339316,1.34446746,2676.8,2676.7,3.95487]
[1739493339516,1.34446746,2676.8,2676.7,3.2078]
[1739493340025,1.34446746,2676.8,2676.7,3.95487]
[1739493340817,0.77536746,2676.8,2676.7,3.95487]
[1739493341917,0.77536746,2676.8,2676.7,3.2078]
[1739493342122,1.36266746,2676.8,2676.7,3.95487]
[1739493342518,1.36266746,2676.8,2676.7,3.2078]
[1739493342726,1.36266746,2676.8,2676.5,0.74712]
[1739493343123,1.36266746,2676.8,2676.4,3.2078]
[1739493343419,1.36266746,2676.8,2676.7,0.74707]
[1739493344227,1.36266746,2676.8,2676.4,3.2078]
[1739493344421,1.36266746,2676.8,2676.5,0.74713]
[1739493344629,1.36266746,2676.8,2676.6,0.7471]
[1739493345230,1.36266746,2676.8,2676.7,2.936]
[1739493345929,2.10970746,2676.8,2676.7,2.936]
[1739493348734,2.10970746,2676.8,2676.4,2.16063254]
[1739493348735,0.74713,2676.5,2676.4,2.16063254]
[1739493348928,4.91534456,2676.5,2676.1,3.2078]
[1739493349133,0.74719,2676.3,2676.1,3.2078]
[1739493349330,1.1085,2676.4,2676.1,3.2078]
[1739493349531,0.5476,2676.3,2676.1,3.2078]
[1739493351232,0.5476,2676.3,2676.1,3.95503]
[1739493351931,0.5476,2676.3,2676.2,0.74721]
[1739493354238,0.5476,2676.3,2676.1,3.2078]
[1739493354432,0.5476,2676.3,2676.1,3.95502]
[1739493354738,1.2948,2676.3,2676.1,3.2078]
[1739493354933,0.74723,2676.2,2675.9,0.74729]
[1739493355131,1.625,2676.1,2675.9,0.74729]
[1739493355737,1.625,2676.1,2675.8,0.74731]
[1739493356433,1.625,2676.1,2675.7,3.2078]
[1739493356738,1.625,2676.1,2675.9,0.74728]
[1739493356938,1.625,2676.1,2675.9,0.74727]
[1739493357734,1.625,2676.1,2675.7,3.2078]
[1739493358345,2.37226,2676.1,2675.7,3.2078]
[1739493358534,1.625,2676.1,2675.7,3.2078]
[1739493358733,1.625,2676.1,2675.7,3.95515]
[1739493358934,1.625,2676.1,2675.7,3.2078]
[1739493359134,1.625,2676.1,2675.7,3.95514]
[1739493359339,0.74728,2676.0,2675.7,3.95514]
[1739493359942,1.625,2676.1,2675.7,3.2078]
[1739493360132,1.28942,2675.9,2675.7,3.2078]
[1739493360940,0.5421,2675.9,2675.6,0.74736]
[1739493361145,0.5421,2675.9,2675.6,2.16063254]
[1739493361345,0.74733,2675.8,2675.6,2.16063254]
[1739493361541,0.74735,2675.7,2675.6,2.16063254]
[1739493361748,2.36935,2675.7,2675.6,2.16063254]
[1739493362244,0.74748,2675.3,2674.8,3.9554]
[1739493362449,2.1794,2675.2,2674.8,3.2078]
[1739493362749,2.1794,2675.2,2674.9,0.74756]
[1739493362947,1.622,2675.2,2674.9,0.74756]
[1739493363246,1.622,2675.2,2674.9,0.74758]
[1739493363442,1.622,2675.2,2675.0,0.74754]
[1739493363645,1.622,2675.2,2674.8,3.2078]
[1739493363945,1.626,2675.4,2675.3,0.74746]
[1739493364346,1.626,2675.4,2675.2,1.165]
[1739493364739,1.626,2675.4,2675.2,1.91249]
[1739493364946,1.626,2675.4,2675.2,1.165]
[1739493365147,2.37345,2675.4,2675.2,1.165]
[1739493365352,1.626,2675.4,2675.2,1.165]
[1739493365646,1.626,2675.4,2675.2,1.91248]
[1739493365841,1.626,2675.4,2675.2,1.165]
[1739493366242,4.8749,2675.7,2675.2,1.165]
[1739493366440,0.74745,2675.4,2675.2,1.165]
[1739493366642,5.07647,2675.3,2674.5,3.2078]
[1739493366836,3.29034456,2674.8,2674.2,4.3552]
[1739493367042,3.29034456,2674.5,2674.2,4.3552]
[1739493367242,3.29034456,2674.5,2674.2,3.7769]
[1739493367443,3.29034456,2674.5,2674.2,3.2078]
[1739493367643,0.74773,2674.4,2674.2,3.2078]
[1739493367839,1.64,2674.3,2674.2,3.2078]
[1739493368044,1.64,2674.3,2673.8,1.32506]
[1739493368045,1.64,2674.3,2673.9,3.2078]
[1739493368245,1.64,2674.3,2673.9,3.95565]
[1739493368554,1.64,2674.3,2674.2,0.74777]
[1739493369251,1.64,2674.3,2674.1,0.74779]
[1739493369550,1.64,2674.3,2674.0,0.74781]
[1739493369749,1.64,2674.3,2673.9,3.95564]
[1739493369950,1.64,2674.3,2673.9,3.2078]
[1739493370153,1.64,2674.3,2674.1,0.7478]
[1739493370454,1.64,2674.3,2674.0,0.74781]
[1739493371146,1.64,2674.3,2673.9,3.2078]
[1739493371351,1.64,2674.3,2674.2,0.74777]
[1739493371752,1.638,2674.5,2673.9,3.2078]
[1739493372142,0.74773,2674.4,2673.9,3.95564]
[1739493372853,0.74773,2674.4,2673.9,3.2078]
[1739493373055,0.74773,2674.4,2673.9,3.95564]
[1739493373650,5.67604456,2674.5,2673.9,3.95564]
[1739493373849,5.67604456,2674.5,2674.0,0.74783]
[1739493374250,0.74773,2674.4,2673.9,3.95564]
[1739493374443,4.92834456,2674.5,2673.9,3.2078]
[1739493374656,0.74772,2674.4,2673.9,3.95565]
[1739493374956,0.7478,2674.2,2673.8,0.5772]
[1739493375150,3.5452,2674.1,2673.8,0.5772]
[1739493375650,2.7974,2674.1,2673.8,0.5772]
[1739493376655,2.7974,2674.1,2673.6,3.95573]
[1739493376656,2.7974,2674.1,2673.6,3.2078]
[1739493376854,0.74784,2674.0,2673.6,3.2078]
[1739493377059,3.54521,2674.1,2673.6,3.95572]
[1739493377247,0.74783,2674.0,2673.6,3.95572]
[1739493377957,0.74784,2674.0,2673.6,3.2078]
[1739493378259,3.29034456,2673.9,2673.6,3.2078]
[1739493378658,3.29034456,2673.9,2673.6,3.95573]
[1739493379054,3.29034456,2673.9,2673.6,3.2078]
[1739493379253,4.03821456,2673.9,2673.6,3.2078]
[1739493379557,3.29034456,2673.9,2673.6,3.95573]
[1739493380262,3.29034456,2673.9,2673.7,0.74791]
[1739493380456,3.29034456,2673.9,2673.6,3.2078]
[1739493380958,3.29034456,2673.9,2673.6,3.95572]
[1739493381651,4.03820456,2673.9,2673.6,3.95574]
[1739493382051,3.29034456,2673.9,2673.7,0.7479]
[1739493382554,3.29034456,2673.9,2673.6,3.2078]
[1739493383159,3.29034456,2673.9,2673.7,0.74791]
[1739493383357,4.03821456,2673.9,2673.6,3.95573]
[1739493383558,4.03821456,2673.9,2673.6,3.2078]
[1739493384256,4.03821456,2673.9,2673.6,3.95574]
[1739493384448,4.03822456,2673.9,2673.6,3.2078]
[1739493384654,1.634,2673.8,2673.7,0.74789]
[1739493384854,1.634,2673.8,2673.6,3.95571]
[1739493385259,1.634,2673.8,2673.6,3.2078]
[1739493385857,2.38188,2673.8,2673.6,3.2078]
[1739493386860,1.634,2673.8,2673.6,3.2078]
[1739493387060,1.634,2673.8,2673.6,3.95573]
[1739493388763,1.634,2673.8,2673.6,3.2078]
[1739493389060,1.634,2673.8,2673.7,0.74791]
[1739493389271,1.632,2673.8,2673.7,0.74791]
[1739493389762,2.37988,2673.8,2673.7,0.00466077]
[1739493389962,1.632,2673.8,2673.7,0.00466077]
[1739493390157,2.37988,2673.8,2673.7,0.00466077]
[1739493393763,0.74808,2673.1,2672.8,1.1429]
[1739493393967,2.7853,2673.0,2672.8,1.1429]
[1739493394665,2.1988,2673.0,2672.9,0.74813]
[1739493395253,1.634,2673.0,2672.9,0.74813]
[1739493395762,1.634,2673.0,2672.8,1.89105]
[1739493396467,1.632,2673.0,2672.9,0.74813]
[1739493397162,0.00560894,2673.2,2672.8,1.1429]
[1739493397363,1.63760894,2673.2,2673.1,0.74808]
[1739493397660,1.63760894,2673.2,2673.0,3.9559]
[1739493398262,0.74808,2673.1,2673.0,3.2078]
[1739493399068,2.38566894,2673.2,2673.0,3.2078]
[1739493399270,1.63760894,2673.2,2673.0,3.95591]
[1739493399467,2.38565894,2673.2,2673.0,3.95591]
[1739493399770,1.63760894,2673.2,2673.1,0.74808]
[1739493400867,0.00560894,2673.2,2673.1,0.74808]
[1739493401265,0.00560894,2673.2,2673.1,1.06808]
[1739493403472,0.00560894,2673.2,2673.1,0.74808]
[1739493410177,0.577,2673.7,2673.6,0.74794]
[1739493410674,3.29034456,2674.1,2673.4,3.2078]
[1739493410675,0.5562,2674.0,2673.4,3.2078]
[1739493410870,2.7861,2674.0,2673.5,0.5574]
[1739493411078,1.634,2674.0,2673.9,0.74785]
[1739493411266,1.63960894,2674.0,2673.9,0.74785]
[1739493411465,1.63960894,2674.0,2673.6,0.5993]
[1739493411679,0.74789,2673.8,2673.5,1.31095894]
[1739493411977,0.5959,2673.7,2673.5,0.75355894]
[1739493412276,0.5959,2673.7,2673.5,0.00560894]
[1739493412474,2.38394,2673.6,2673.5,0.00560894]
[1739493412679,1.636,2673.6,2673.1,3.2078]
[1739493412881,0.74802,2673.4,2673.1,3.95588]
[1739493413079,1.31643,2673.3,2673.1,3.2078]
[1739493413272,2.1897,2673.2,2673.1,3.2078]
[1739493416085,2.1897,2673.2,2673.1,3.95588]
[1739493417879,0.74795,2673.6,2673.1,3.95588]
[1739493417880,1.634,2673.7,2673.6,0.74793]
[1739493418882,1.6745,2673.9,2673.8,0.74788]
[1739493421082,1.6745,2673.9,2673.8,3.95568]
[1739493421893,1.6745,2673.9,2673.8,3.2078]
[1739493422392,1.6745,2673.9,2673.5,3.2078]
[1739493422591,3.29034456,2673.8,2673.5,3.2078]
[1739493422794,2.38292,2673.7,2673.5,3.2078]
[1739493423191,1.635,2673.7,2673.5,3.2078]
[1739493423386,2.38292,2673.7,2673.5,3.2078]
[1739493423587,1.635,2673.7,2673.5,3.2078]
[1739493423782,2.38293,2673.7,2673.5,3.2078]
[1739493424193,1.635,2673.7,2673.5,3.2078]
[1739493424491,1.635,2673.7,2673.2,3.2078]
[1739493424691,0.74796,2673.6,2673.2,3.95583]
[1739493425082,0.74794,2673.6,2673.2,3.2078]
[1739493425283,0.74794,2673.6,2673.2,3.95583]
[1739493425894,1.635,2673.7,2673.2,3.95583]
[1739493425895,2.38292,2673.7,2673.3,0.74802]
[1739493426192,2.38292,2673.7,2673.3,0.74801]
[1739493427094,1.635,2673.7,2673.2,3.2078]
[1739493427295,2.38292,2673.7,2673.3,0.74802]
[1739493427587,1.635,2673.7,2673.2,3.2078]
[1739493427992,0.74799,2673.4,2673.2,3.2078]
[1739493428189,3.3628,2673.3,2672.9,3.2078]
[1739493428395,0.74807,2673.2,2672.9,3.2078]
[1739493429789,0.74809,2673.1,2672.9,3.2078]
[1739493430693,0.7481,2673.1,2672.9,3.2078]
[1739493431091,3.29034456,2673.2,2672.9,3.2078]
[1739493431290,4.03841456,2673.2,2672.9,3.2078]
[1739493432088,4.03841456,2673.2,2672.9,3.95592]
[1739493432291,4.03840456,2673.2,2672.9,3.2078]
[1739493434098,3.29034456,2673.2,2672.9,3.2078]
[1739493434394,4.03840456,2673.2,2672.9,3.95593]
[1739493434603,4.11084,2673.3,2672.9,3.95593]
[1739493434894,0.74805,2673.2,2672.9,3.95593]
[1739493435094,0.74806,2673.2,2672.9,3.95593]
[1739493435695,3.3628,2673.3,2672.9,3.2078]
[1739493435890,0.74809,2673.1,2672.9,3.2078]
[1739493436095,0.74807,2673.2,2672.9,3.2078]
[1739493436295,0.74807,2673.2,2672.9,3.95593]
[1739493436492,0.74807,2673.2,2672.9,3.2078]
[1739493437198,0.74807,2673.2,2672.9,3.95593]
[1739493437402,0.74807,2673.2,2672.9,3.2078]
[1739493437705,0.7481,2673.1,2672.9,3.2078]
[1739493438397,0.74811,2673.0,2672.9,3.2078]
[1739493439701,6.5706,2673.3,2672.9,3.2078]
[1739493439890,0.74809,2673.1,2672.9,3.2078]
[1739493440602,6.5706,2673.3,2672.9,3.2078]
[1739493440802,0.74811,2673.0,2672.9,3.2078]
[1739493441006,6.5706,2673.3,2672.9,3.2078]
[1739493441199,0.74809,2673.1,2672.9,3.2078]
[1739493441400,0.7481,2673.1,2672.9,3.2078]
[1739493441697,0.74811,2673.0,2672.9,3.2078]
[1739493441905,0.74814,2672.9,2672.6,4.51121]
[1739493442104,2.37416,2672.9,2672.6,3.763]
[1739493442296,2.37415,2672.9,2672.6,3.2078]
[1739493442601,1.1681,2672.8,2672.6,3.2078]
[1739493442798,2.47276,2672.8,2672.6,3.2078]
[1739493443106,1.7246,2672.8,2672.6,3.2078]
[1739493443298,2.47278,2672.8,2672.6,3.2078]
[1739493443492,0.74819,2672.7,2672.6,3.2078]
[1739493444700,4.9324,2672.8,2672.2,0.584]
[1739493444899,3.2078,2672.5,2671.8,3.2078]
[1739493445101,0.74834,2672.2,2671.8,3.2078]
[1739493445302,1.63,2672.4,2671.8,3.95623]
[1739493445303,1.1586,2672.1,2671.8,3.95623]
[1739493445605,1.1586,2672.1,2671.9,0.74841]
[1739493446706,1.1586,2672.1,2671.8,3.2078]
[1739493447706,1.1586,2672.1,2671.8,3.95624]
[1739493448100,1.90697,2672.1,2671.8,3.2078]
[1739493448307,0.7484,2672.0,2671.8,3.2078]
[1739493448608,1.90697,2672.1,2671.8,3.2078]
[1739493448809,1.1586,2672.1,2671.8,3.2078]
[1739493449000,1.1586,2672.1,2671.9,0.7484]
[1739493449402,1.1586,2672.1,2671.8,3.2078]
[1739493449598,1.1586,2672.1,2671.8,3.95623]
[1739493450008,1.628,2672.0,2671.8,3.95623]
[1739493450208,1.628,2672.0,2671.8,3.2078]
[1739493450410,4.91834456,2672.0,2671.8,3.2078]
[1739493451202,5.66674456,2672.0,2671.8,3.2078]
[1739493451609,4.91834456,2672.0,2671.8,3.2078]
[1739493451801,4.91834456,2672.0,2671.8,3.95623]
[1739493452197,4.91834456,2672.0,2671.8,3.2078]
[1739493452810,5.66673456,2672.0,2671.8,3.2078]
[1739493453109,4.91834456,2672.0,2671.8,3.95622]
[1739493453299,4.91834456,2672.0,2671.8,3.2078]
[1739493453802,0.74841,2671.9,2671.8,3.2078]
[1739493454013,0.74841,2671.9,2671.5,3.2078]
[1739493454212,0.5982,2671.8,2671.5,3.95631]
[1739493455009,4.91834456,2672.0,2671.5,3.95631]
[1739493455010,4.91834456,2672.0,2671.5,3.2078]
[1739493455212,4.91834456,2672.0,2671.7,0.74845]
[1739493455415,5.66675456,2672.0,2671.6,1.84078]
[1739493455608,0.74843,2671.9,2671.6,1.84078]
[1739493456013,4.91834456,2672.0,2671.6,1.08619415]
[1739493456314,4.91834456,2672.0,2671.7,0.74846]
[1739493456513,4.91834456,2672.0,2671.6,1.08619415]
[1739493456714,0.74843,2671.9,2671.6,1.83467415]
[1739493457213,5.66674456,2672.0,2671.6,1.83467415]
[1739493457509,4.91834456,2672.0,2671.6,1.83467415]
[1739493457713,5.66674456,2672.0,2671.7,0.74847]
[1739493458411,1.625,2671.9,2671.6,1.08619415]
[1739493458612,1.625,2671.9,2671.8,0.74844]
[1739493459017,1.625,2671.9,2671.8,3.95624]
[1739493461313,1.625,2671.9,2671.8,3.2078]
[1739493461711,1.625,2671.9,2671.8,3.95624]
[1739493463514,1.625,2671.9,2671.8,3.2078]
[1739493463821,1.625,2671.9,2671.5,3.95631]
[1739493464018,1.1203,2671.8,2671.5,3.2078]
[1739493464221,0.74848,2671.7,2671.5,3.95631]
[1739493464520,0.5955,2671.6,2671.5,3.95631]
[1739493465615,1.344,2671.6,2671.5,3.2078]
[1739493466423,0.5955,2671.6,2671.5,3.2078]
[1739493466819,0.5955,2671.6,2671.5,3.95633]
[1739493467521,3.29034456,2671.7,2671.5,3.95633]
[1739493467522,1.1203,2671.8,2671.7,0.74847]
[1739493467719,1.1203,2671.8,2671.5,3.2078]
[1739493467720,1.622,2671.9,2671.8,0.74844]
[1739493468429,2.37044,2671.9,2671.6,0.7485]
[1739493468914,2.37042,2671.9,2671.6,0.7485]
[1739493469323,1.622,2671.9,2671.5,3.95631]
[1739493469515,1.622,2671.9,2671.5,3.9563]
[1739493469516,2.37043,2671.9,2671.5,3.9563]
[1739493469720,2.37043,2671.9,2671.6,0.7485]
[1739493470021,1.622,2671.9,2671.5,3.2078]
[1739493470528,1.622,2671.9,2671.6,0.74849]
[1739493470720,1.622,2671.9,2671.7,0.74847]
[1739493471626,1.622,2671.9,2671.5,3.2078]
[1739493471922,1.622,2671.9,2671.6,0.74848]
[1739493472224,2.37042,2671.9,2671.5,3.2078]
[1739493472426,2.37042,2671.9,2671.6,0.74848]
[1739493472621,1.622,2671.9,2671.6,0.74848]
[1739493472922,0.74844,2671.8,2671.5,3.95632]
[1739493473223,2.37043,2671.9,2671.6,0.7485]
[1739493474421,2.37043,2671.9,2671.6,3.9563]
[1739493476828,1.622,2671.9,2671.6,3.95628]
[1739493477016,1.622,2671.9,2671.6,3.2078]
[1739493477221,1.622,2671.9,2671.8,0.74844]
[1739493477828,1.6775,2672.1,2671.9,0.74841]
[1739493478037,1.628,2672.0,2671.8,0.74842]
[1739493478329,1.628,2672.0,2671.7,1.1887]
[1739493478626,2.3764,2672.0,2671.7,1.93716]
[1739493478826,2.3764,2672.0,2671.8,0.74844]
[1739493479622,1.628,2672.0,2671.7,1.1887]
[1739493479819,2.3764,2672.0,2671.7,1.93716]
[1739493480024,1.628,2672.0,2671.7,1.93717]
[1739493480327,1.628,2672.0,2671.7,1.1887]
[1739493480526,2.37641,2672.0,2671.7,1.93717]
[1739493480723,2.37641,2672.0,2671.7,0.74847]
[1739493481024,2.3764,2672.0,2671.7,0.74847]
[1739493481230,1.628,2672.0,2671.6,3.2078]
[1739493481529,2.3764,2672.0,2671.6,3.2078]
[1739493481728,1.628,2672.0,2671.6,3.2078]
[1739493481930,0.74843,2671.9,2671.6,3.95629]
[1739493482127,2.37639,2672.0,2671.7,0.74845]
[1739493482324,1.628,2672.0,2671.6,3.2078]
[1739493482524,0.74846,2671.8,2671.6,3.2078]
[1739493483032,0.5634,2671.7,2671.6,3.95629]
[1739493483227,0.5634,2671.7,2671.6,3.9563]
[1739493484624,0.5634,2671.7,2671.6,3.2078]
[1739493485026,0.5634,2671.7,2671.6,3.9563]
[1739493485631,2.3764,2672.0,2671.7,0.74846]
[1739493485831,0.5494,2671.9,2671.7,0.74846]
[1739493486131,2.7118,2672.1,2671.9,0.7484]
[1739493486339,0.74844,2671.8,2671.7,3.2078]
[1739493486834,3.85424456,2672.0,2671.7,3.2078]
[1739493487130,0.74841,2671.9,2671.5,0.74851]
[1739493487332,3.29034456,2671.7,2671.0,3.2078]
[1739493487631,0.74859,2671.3,2671.0,3.2078]
[1739493487827,2.1939,2671.2,2671.0,3.2078]
[1739493488033,1.1654,2671.1,2671.0,3.2078]
[1739493489229,0.5931,2671.1,2671.0,3.95647]
[1739493490137,2.1939,2671.2,2671.1,0.74864]
[1739493490337,0.5742,2671.4,2671.3,0.74858]
[1739493491236,0.5742,2671.4,2671.0,3.2078]
[1739493491237,0.5742,2671.4,2671.2,0.7486]
[1739493491736,0.5742,2671.4,2671.0,3.2078]
[1739493491938,0.5742,2671.4,2671.2,0.74859]
[1739493492132,0.5742,2671.4,2671.0,3.2078]
[1739493492332,0.5742,2671.4,2671.2,0.74861]
[1739493492832,0.5742,2671.4,2671.0,3.2078]
[1739493493041,0.5742,2671.4,2671.3,0.74858]
[1739493493232,0.5742,2671.4,2671.3,3.95638]
[1739493493829,0.596,2671.6,2671.3,3.2078]
[1739493494038,1.628,2671.7,2671.6,0.7485]
[1739493494229,1.1191,2671.9,2671.8,0.74844]
[1739493494635,1.1191,2671.9,2671.6,3.2078]
[1739493494832,1.1191,2671.9,2671.7,0.74846]
[1739493495032,1.1191,2671.9,2671.6,3.2078]
[1739493495229,1.86752,2671.9,2671.6,3.95629]
[1739493495633,1.1191,2671.9,2671.7,0.74847]
[1739493496034,1.629,2672.1,2671.6,3.2078]
[1739493496340,2.37736,2672.1,2671.8,0.74843]
[1739493496537,1.179,2672.2,2671.6,3.2078]
[1739493496938,1.92734,2672.2,2671.9,0.74841]
[1739493497139,0.74836,2672.1,2671.9,3.2078]
[1739493497438,0.74837,2672.1,2671.6,3.2078]
[1739493497638,0.74837,2672.1,2671.9,3.2078]
[1739493497831,0.74836,2672.1,2671.7,0.74845]
[1739493498035,0.74836,2672.1,2671.8,0.74844]
[1739493498840,1.179,2672.2,2671.8,0.74844]
[1739493499040,1.92735,2672.2,2671.9,0.74841]
[1739493500137,1.179,2672.2,2672.1,0.74836]
[1739493501743,0.5896,2672.3,2671.9,3.7691]
[1739493501933,0.5896,2672.3,2671.9,4.0881]
[1739493502140,0.74835,2672.2,2671.9,4.51751]
[1739493502338,0.74835,2672.2,2671.9,3.95621]
[1739493502540,0.566,2672.1,2671.9,3.95621]
[1739493502943,0.566,2672.1,2671.9,3.2078]
[1739493503536,0.566,2672.1,2671.9,3.95621]
[1739493503930,0.566,2672.1,2671.9,3.2078]
[1739493504137,0.566,2672.1,2672.0,0.74839]
[1739493504341,0.566,2672.1,2671.9,3.2078]
[1739493504640,0.566,2672.1,2671.9,3.9562]
[1739493505146,0.566,2672.1,2671.9,3.95621]
[1739493505441,0.566,2672.1,2671.9,3.2078]
[1739493506145,0.566,2672.1,2671.9,3.95621]
[1739493506546,0.566,2672.1,2671.9,3.2078]
[1739493507645,0.566,2672.1,2672.0,0.74839]
[1739493511245,0.74839,2672.0,2671.9,3.2078]
[1739493511448,1.31437,2672.1,2671.9,3.95621]
[1739493512846,0.566,2672.1,2672.0,0.74839]
[1739493513942,0.5896,2672.3,2671.9,3.2078]
[1739493514145,0.5896,2672.3,2672.1,0.74834]
[1739493514445,0.74833,2672.2,2672.0,1.88987]
[1739493514652,0.5896,2672.3,2672.0,1.88987]
[1739493514851,1.33791,2672.3,2672.0,1.88987]
[1739493515053,0.74833,2672.2,2672.0,1.88987]
[1739493515646,0.5896,2672.3,2672.0,1.88987]
[1739493515846,1.33793,2672.3,2672.0,0.74837]
[1739493516153,0.5896,2672.3,2671.9,3.2078]
[1739493516355,0.5896,2672.3,2672.2,0.74833]
[1739493516546,1.16660894,2672.4,2672.3,0.7483]
[1739493517352,1.16660894,2672.4,2672.2,0.74831]
[1739493517947,1.91487894,2672.4,2672.0,1.4606]